fUST/lending_fUST_20260429
["ID","MTS","AMOUNT","RATE_DAILY","PERIOD"]
[421321510,1777432243224,-804.177038,0.00018793,2]
[421321511,1777432243240,-151.0,0.00018793,2]
[421321512,1777432243257,-151.0,0.00018793,2]
[421321513,1777432243274,-151.0,0.00018793,2]
[421321514,1777432243290,-7756.453893,0.00018793,2]
[421321515,1777432243307,-813.43133,0.00018793,2]
[421321516,1777432243323,-7756.453893,0.00018793,2]
[421321517,1777432243340,-813.43133,0.00018793,2]
[421321518,1777432243356,-163.632689,0.00018793,2]
[421321519,1777432243374,-7756.453893,0.00018793,2]
[421321520,1777432243391,-813.43133,0.00018793,2]
[421321521,1777432243408,-187.480112,0.00018793,2]
[421321522,1777432243425,-7756.453893,0.00018793,2]
[421321523,1777432243442,-813.43133,0.00018793,2]
[421321524,1777432243459,-171.817311,0.00018793,2]
[421321525,1777432243477,-187.480112,0.00018793,2]
[421321526,1777432243495,-500.0,0.000188,2]
[421321527,1777432243512,-1000.0,0.00018806,2]
[421321528,1777432243528,-1122.30101926,0.00018857,22]
[421321529,1777432243545,-197.48,0.00018933,2]
[421321530,1777432243562,-316.539,0.00018995,2]
[421321531,1777432243579,-187.299,0.00018995,2]
[421321532,1777432243596,-431.0,0.00019,2]
[421321533,1777432243613,-787.0,0.00019,2]
[421321534,1777432243631,-209.0,0.00019,2]
[421321535,1777432243648,-3763.0,0.00019,2]
[421321536,1777432243665,-394.872598,0.00019,2]
[421321537,1777432243681,-394.872598,0.00019,2]
[421321538,1777432243699,-394.872598,0.00019,2]
[421321539,1777432243717,-394.872598,0.00019,2]
[421321540,1777432243734,-231.79065069,0.00019,2]
[421321541,1777432243752,-1122.30101926,0.00019016,24]
[421321542,1777432243769,-151.0,0.00019095,2]
[421321543,1777432243787,-151.467374,0.00019095,2]
[421321544,1777432243803,-428.906585,0.00019095,2]
[421321545,1777432243820,-428.906585,0.00019095,2]
[421321546,1777432243836,-428.906585,0.00019095,2]
[421321547,1777432243854,-428.906585,0.00019095,2]
[421321548,1777432243871,-159.70475166,0.000191,8]
[421321549,1777432243887,-358.9109503,0.0001914,2]
[421321550,1777432243903,-1122.30101926,0.00019175,25]
[421321551,1777432243920,-276.49,0.00019178,2]
[421321552,1777432243937,-1000.0,0.00019178,2]
[421321553,1777432243953,-1000.0,0.00019178,2]
[421321554,1777432243970,-1000.0,0.00019178,2]
[421321555,1777432243987,-643.3944,0.00019178,2]
[421321556,1777432244002,-344.49,0.00019178,2]
[421321557,1777432244012,-300.0,0.00019178,2]
[421321558,1777432244021,-600.0,0.00019178,2]
[421321559,1777432244362,-300.0,0.00019178,2]
[421321560,1777432244398,-600.0,0.00019178,2]
[421321561,1777432244408,-300.0,0.00019178,2]
[421321562,1777432244418,-300.0,0.00019178,2]
[421321563,1777432244427,-300.0,0.00019178,2]
[421321564,1777432244437,-600.0,0.00019178,2]
[421321565,1777432244447,-300.0,0.00019178,2]
[421321566,1777432244457,-1561.0,0.00019178,2]
[421321567,1777432244467,-489.795287,0.00019252,2]
[421321568,1777432244476,-489.795287,0.00019252,2]
[421321569,1777432244486,-489.795287,0.00019252,2]
[421321570,1777432244496,-489.795287,0.00019252,2]
[421321571,1777432244507,-5521.942073,0.00019252,2]
[421321572,1777432244518,-5521.942073,0.00019252,2]
[421321573,1777432244528,-5521.942073,0.00019252,2]
[421321574,1777432244538,-5521.942073,0.00019252,2]
[421321575,1777432244547,-475.878588,0.00019252,2]
[421321576,1777432244556,-475.878588,0.00019252,2]
[421321577,1777432244566,-475.878588,0.00019252,2]
[421321578,1777432244575,-475.878588,0.00019252,2]
[421321579,1777432244585,-151.63847,0.00019252,2]
[421321580,1777432244594,-151.0,0.00019252,2]
[421321581,1777432244603,-151.0,0.00019252,2]
[421321582,1777432244613,-804.177038,0.00019252,2]
[421321583,1777432244623,-804.177038,0.00019252,2]
[421321584,1777432244632,-804.177038,0.00019252,2]
[421321585,1777432244641,-804.177038,0.00019252,2]
[421321586,1777432244651,-151.0,0.00019252,2]
[421321587,1777432244660,-239.001149,0.00019252,2]
[421321588,1777432244670,-283.871855,0.00019252,2]
[421321589,1777432244679,-7756.453893,0.00019252,2]
[421321590,1777432244689,-813.43133,0.00019252,2]
[421321591,1777432244699,-7756.453893,0.00019252,2]
[421321592,1777432244709,-813.43133,0.00019252,2]
[421321593,1777432244719,-7756.453893,0.00019252,2]
[421321594,1777432244729,-813.43133,0.00019252,2]
[421321595,1777432244739,-187.480112,0.00019252,2]
[421321596,1777432244749,-7756.453893,0.00019252,2]
[421321597,1777432244760,-813.43133,0.00019252,2]
[421321598,1777432244769,-171.817311,0.00019252,2]
[421321599,1777432244779,-187.480112,0.00019252,2]
[421321600,1777432244789,-1328.0,0.00019278,120]
[421321601,1777432244799,-578.20924308,0.00019308,2]
[421321602,1777432244808,-2312.83697232,0.00019308,2]
[421321603,1777432244818,-1000.0,0.00019321,2]
[421321604,1777432244828,-1000.0,0.00019321,2]
[421321605,1777432244838,-1000.0,0.00019321,2]
[421321606,1777432244848,-1000.0,0.00019321,2]
[421321607,1777432244859,-538.71918106,0.00019321,2]
[421321608,1777432244870,-576.97039663,0.00019321,2]
[421321609,1777432244879,-1000.0,0.00019321,2]
[421321610,1777432244891,-1000.0,0.00019321,2]
[421321611,1777432244901,-1000.0,0.00019321,2]
[421321612,1777432244912,-219.469755,0.00019321,2]
[421321613,1777432244922,-219.469755,0.00019321,2]
[421321614,1777432244931,-219.469755,0.00019321,2]
[421321615,1777432244941,-219.469755,0.00019321,2]
[421321616,1777432244952,-151.0,0.00019321,2]
[421321617,1777432244963,-151.0,0.00019321,2]
[421321618,1777432244973,-151.0,0.00019321,2]
[421321619,1777432244982,-233.504687,0.00019321,2]
[421321620,1777432244992,-233.504687,0.00019321,2]
[421321621,1777432245001,-233.504687,0.00019321,2]
[421321622,1777432245011,-233.504687,0.00019321,2]
[421321623,1777432245020,-2143.0,0.00019323,120]
[421321624,1777432245029,-1122.30101926,0.00019335,26]
[421321625,1777432245039,-151.0,0.00019352,2]
[421321626,1777432245048,-151.0,0.00019352,2]
[421321627,1777432245058,-151.0,0.00019352,2]
[421321628,1777432245067,-1122.30101926,0.00019494,28]
[421321629,1777432245077,-38000.0,0.00019513,3]
[421321630,1777432245086,-151.0,0.00019513,2]
[421321631,1777432245096,-9918.957665,0.00019513,2]
[421321632,1777432245106,-9918.957665,0.00019513,2]
[421321633,1777432245115,-9918.957665,0.00019513,2]
[421321634,1777432245125,-9918.957665,0.00019513,2]
[421321635,1777432245134,-454.53565,0.00019513,2]
[421321636,1777432245144,-454.53565,0.00019513,2]
[421321637,1777432245153,-454.53565,0.00019513,2]
[421321638,1777432245164,-454.53565,0.00019513,2]
[421321639,1777432245175,-1385.53926,0.00019513,2]
[421321640,1777432245184,-1385.53926,0.00019513,2]
[421321641,1777432245195,-1385.53926,0.00019513,2]
[421321642,1777432245205,-4886.903776,0.00019513,2]
[421321643,1777432245215,-1385.53926,0.00019513,2]
[421321644,1777432245224,-4886.903776,0.00019513,2]
[421321645,1777432245234,-4886.903776,0.00019513,2]
[421321646,1777432245243,-4886.903776,0.00019513,2]
[421321647,1777432245253,-475.878588,0.00019513,2]
[421321648,1777432245263,-475.878588,0.00019513,2]
[421321649,1777432245272,-475.878588,0.00019513,2]
[421321650,1777432245282,-475.878584,0.00019513,2]
[421321651,1777432245291,-151.0,0.00019513,2]
[421321652,1777432245301,-151.0,0.00019513,2]
[421321653,1777432245311,-804.177038,0.00019513,2]
[421321654,1777432245320,-804.177038,0.00019513,2]
[421321655,1777432245330,-804.177038,0.00019513,2]
[421321656,1777432245339,-804.177037,0.00019513,2]
[421321657,1777432245349,-151.0,0.00019513,2]
[421321658,1777432245359,-7756.453893,0.00019513,2]
[421321659,1777432245368,-813.43133,0.00019513,2]
[421321660,1777432245378,-7756.453893,0.00019513,2]
[421321661,1777432245387,-813.43133,0.00019513,2]
[421321662,1777432245397,-7756.453893,0.00019513,2]
[421321663,1777432245406,-813.43133,0.00019513,2]
[421321664,1777432245416,-187.480112,0.00019513,2]
[421321665,1777432245425,-7756.4538915,0.00019513,2]
[421321666,1777432245435,-813.431331,0.00019513,2]
[421321667,1777432245445,-171.817311,0.00019513,2]
[421321668,1777432245454,-151.0,0.00019521,2]
[421321669,1777432245467,-428.906585,0.00019521,2]
[421321670,1777432245477,-428.906585,0.00019521,2]
[421321671,1777432245486,-428.906585,0.00019521,2]
[421321672,1777432245496,-428.906585,0.00019521,2]
[421321673,1777432245507,-394.872598,0.00019521,2]
[421321674,1777432245517,-394.872598,0.00019521,2]
[421321675,1777432245526,-394.872598,0.00019521,2]
[421321676,1777432245536,-394.872598,0.00019521,2]
[421321677,1777432245546,-489.795287,0.00019521,2]
[421321678,1777432245556,-489.795287,0.00019521,2]
[421321679,1777432245567,-489.795287,0.00019521,2]
[421321680,1777432245577,-489.795287,0.00019521,2]
[421321681,1777432245587,-5521.942073,0.00019521,2]
[421321682,1777432245598,-5521.942073,0.00019521,2]
[421321683,1777432245607,-5521.942073,0.00019521,2]
[421321684,1777432245617,-5521.942073,0.00019521,2]
[421321685,1777432245627,-219.469755,0.00019521,2]
[421321686,1777432245637,-219.469755,0.00019521,2]
[421321687,1777432245646,-219.469755,0.00019521,2]
[421321688,1777432245657,-219.469764,0.00019521,2]
[421321689,1777432245667,-151.0,0.00019521,2]
[421321690,1777432245677,-151.0,0.00019521,2]
[421321691,1777432245687,-151.0,0.00019521,2]
[421321692,1777432245697,-233.504687,0.00019521,2]
[421321693,1777432245708,-233.504687,0.00019521,2]
[421321694,1777432245718,-233.504687,0.00019521,2]
[421321695,1777432245728,-233.504682,0.00019521,2]
[421321696,1777432245738,-38000.0,0.00019521,3]
[421321697,1777432245748,-201.34706658,0.00019529,2]
[421321698,1777432245758,-151.0,0.0001953,2]
[421321699,1777432245768,-151.0,0.0001953,2]
[421321700,1777432245777,-151.0,0.0001953,2]
[421321701,1777432245787,-9918.957665,0.0001953,2]
[421321702,1777432245798,-9918.957665,0.0001953,2]
[421321703,1777432245807,-9918.957665,0.0001953,2]
[421321704,1777432245817,-9918.957665,0.0001953,2]
[421321705,1777432245827,-454.53565,0.0001953,2]
[421321706,1777432245837,-454.53565,0.0001953,2]
[421321707,1777432245847,-454.53565,0.0001953,2]
[421321708,1777432245857,-454.53565,0.0001953,2]
[421321709,1777432245866,-1385.53926,0.0001953,2]
[421321710,1777432245876,-1385.53926,0.0001953,2]
[421321711,1777432245886,-1385.53926,0.0001953,2]
[421321712,1777432245896,-4886.903776,0.0001953,2]
[421321713,1777432245906,-1385.53926,0.0001953,2]
[421321714,1777432245917,-4886.903776,0.0001953,2]
[421321715,1777432245927,-4886.903776,0.0001953,2]
[421321716,1777432245937,-4886.903776,0.0001953,2]
[421321717,1777432245947,-38000.0,0.0001953,3]
[421321718,1777432245957,-151.0,0.00019539,2]
[421321719,1777432245966,-38000.0,0.00019539,3]
[421321720,1777432245977,-200.0,0.00019547,2]
[421321721,1777432245988,-38000.0,0.00019548,3]
[421321722,1777432245999,-152.675792,0.00019548,2]
[421321723,1777432246008,-428.906585,0.00019548,2]
[421321724,1777432246019,-428.906585,0.00019548,2]
[421321725,1777432246028,-428.906585,0.00019548,2]
[421321726,1777432246038,-428.906585,0.00019548,2]
[421321728,1777432246050,-394.872598,0.00019548,2]
[421321730,1777432246060,-394.872598,0.00019548,2]
[421321732,1777432246070,-394.872598,0.00019548,2]
[421321733,1777432246080,-394.872598,0.00019548,2]
[421321734,1777432246090,-489.795287,0.00019548,2]
[421321735,1777432246100,-489.795287,0.00019548,2]
[421321736,1777432246110,-489.795287,0.00019548,2]
[421321738,1777432246120,-489.795287,0.00019548,2]
[421321739,1777432246131,-5521.942073,0.00019548,2]
[421321740,1777432246142,-5521.942073,0.00019548,2]
[421321741,1777432246153,-5521.942073,0.00019548,2]
[421321742,1777432246163,-5521.942073,0.00019548,2]
[421321743,1777432246174,-9918.957665,0.00019548,2]
[421321744,1777432246184,-9918.957665,0.00019548,2]
[421321745,1777432246194,-9918.957665,0.00019548,2]
[421321746,1777432246204,-9918.957667,0.00019548,2]
[421321747,1777432246214,-454.53565,0.00019548,2]
[421321749,1777432246224,-454.53565,0.00019548,2]
[421321751,1777432246234,-454.53565,0.00019548,2]
[421321752,1777432246244,-454.535641,0.00019548,2]
[421321753,1777432246254,-1385.53926,0.00019548,2]
[421321754,1777432246263,-1385.53926,0.00019548,2]
[421321755,1777432246274,-1385.53926,0.00019548,2]
[421321756,1777432246284,-4886.903776,0.00019548,2]
[421321757,1777432246294,-1385.539255,0.00019548,2]
[421321758,1777432246305,-4886.903776,0.00019548,2]
[421321759,1777432246316,-4886.903776,0.00019548,2]
[421321760,1777432246326,-4886.903769,0.00019548,2]
[421321761,1777432246336,-29104.65088727,0.00019548,3]
[421321762,1777432246345,-500.0,0.00019573,2]
[421321763,1777432246355,-167.41287609,0.00019573,2]
[421321764,1777432246365,-500.0,0.00019573,2]
[421321765,1777432246375,-500.0,0.00019573,2]
[421321766,1777432246385,-500.0,0.00019573,2]
[421321767,1777432246395,-500.0,0.00019573,2]
[421321768,1777432246406,-500.0,0.00019573,2]
[421321769,1777432246416,-168.3888056,0.00019581,2]
[421321770,1777432246427,-300.0,0.00019589,3]
[421321771,1777432246437,-300.0,0.00019589,3]
[421321772,1777432246447,-300.0,0.00019589,3]
[421321773,1777432246457,-300.0,0.00019589,3]
[421321774,1777432246467,-1188.01694476,0.000196,2]
[421321775,1777432246477,-792.0,0.000196,2]
[421321776,1777432246488,-1122.30101926,0.00019653,29]
[421321777,1777432246499,-159.0,0.000198,10]
[421321778,1777432246509,-1122.30101926,0.00019813,30]
[421321779,1777432246520,-1500.0,0.00019868,2]
[421321780,1777432246530,-1500.0,0.00019868,2]
[421321781,1777432246542,-1500.0,0.00019868,2]
[421321782,1777432246552,-1500.0,0.00019868,2]
[421321783,1777432246562,-1500.0,0.00019868,2]
[421321784,1777432246572,-1500.0,0.00019868,2]
[421321785,1777432246582,-1500.0,0.00019868,2]
[421321786,1777432246593,-250.0,0.00019907,2]
[421321787,1777432246602,-250.0,0.00019907,2]
[421321788,1777432246612,-1122.30101926,0.00019972,30]
[421321789,1777432246622,-431.43141541,0.00019973,2]
[421321790,1777432246632,-500.0,0.00019973,2]
[421321791,1777432246642,-500.10301074,0.00019973,2]
[421321792,1777432246651,-500.0,0.00019973,2]
[421321793,1777432246661,-150.0,0.00019973,2]
[421321794,1777432246671,-500.0,0.00019973,2]
[421321795,1777432246680,-624.51357798,0.00019973,2]
[421321796,1777432246690,-500.0,0.00019973,2]
[421321797,1777432246700,-500.0,0.00019973,2]
[421321798,1777432246710,-465.03938057,0.00019973,2]
[421321799,1777432246720,-308.86507857,0.00019973,2]
[421321800,1777432246729,-500.0,0.00019973,2]
[421321801,1777432246739,-500.0,0.00019973,2]
[421321802,1777432246748,-500.0,0.00019973,2]
[421321803,1777432246758,-252.13721666,0.00019973,2]
[421321804,1777432246767,-500.0,0.00019973,2]
[421321805,1777432246777,-500.0,0.00019973,2]
[421321806,1777432246787,-500.0,0.00019973,2]
[421321807,1777432246797,-500.0,0.00019973,2]
[421321808,1777432246807,-500.0,0.00019973,2]
[421321809,1777432246816,-500.0,0.00019973,2]
[421321810,1777432246826,-500.0,0.00019973,2]
[421321811,1777432246836,-500.0,0.00019973,2]
[421321812,1777432246847,-500.0,0.00019973,2]
[421321813,1777432246857,-500.0,0.00019973,2]
[421321814,1777432246866,-500.0,0.00019973,2]
[421321815,1777432246876,-500.0,0.00019973,2]
[421321816,1777432246886,-500.0,0.00019973,2]
[421321817,1777432246896,-500.0,0.00019973,2]
[421321818,1777432246905,-500.0,0.00019973,2]
[421321819,1777432246916,-500.0,0.00019973,2]
[421321820,1777432246925,-500.0,0.00019973,2]
[421321821,1777432246934,-500.0,0.00019973,2]
[421321822,1777432246944,-500.0,0.00019973,2]
[421321823,1777432246953,-500.0,0.00019973,2]
[421321824,1777432246963,-500.0,0.00019973,2]
[421321825,1777432246972,-500.0,0.00019973,2]
[421321826,1777432246983,-455.7675055,0.00019983,2]
[421321827,1777432246993,-16599.3865163,0.00019983,2]
[421321828,1777432247002,-5398.4659786,0.00019983,2]
[421321829,1777432247012,-159.3605617,0.00019983,2]
[421321830,1777432247022,-151.0,0.00019983,2]
[421321831,1777432247031,-151.0,0.00019983,2]
[421321832,1777432247041,-195.108905,0.00019983,2]
[421321833,1777432247051,-4820.5658608,0.00019983,2]
[421321834,1777432247063,-33608.05834632,0.0002,7]
[421321836,1777432247073,-55204.86174576,0.0002,2]
[421321843,1777432247784,-123814.13564343,0.0002,2]
[421321844,1777432247796,-9810.84186702,0.0002,2]
[421321845,1777432247919,-668.042404,0.00018205,2]
[421321846,1777432247929,-187.480112,0.00018205,2]
[421321847,1777432247939,-171.817311,0.00018205,2]
[421321848,1777432247949,-171.817311,0.00018773,2]
[421321849,1777432247959,-187.50722621,0.00018773,2]
[421321850,1777432248233,-575.29097161,0.00013698,2]
[421321851,1777432248244,-187.480112,0.00018205,2]
[421321852,1777432248254,-668.042404,0.00018205,2]
[421321853,1777432248264,-171.817311,0.00018205,2]
[421321854,1777432248275,-668.042404,0.00018205,2]
[421321855,1777432248285,-668.042404,0.00018205,2]
[421321856,1777432248296,-480.53517779,0.00018773,2]
[421321857,1777432248307,-187.480112,0.00018773,2]
[421321858,1777432248318,-86.09035132,0.00018773,2]
[421321859,1777432248333,-85.72695968,0.00018773,2]
[421321860,1777432248342,-187.480112,0.00018773,2]
[421321861,1777432248352,-668.042404,0.00018773,2]
[421321862,1777432248362,-171.817311,0.00018773,2]
[421321863,1777432248371,-668.042404,0.00018773,2]
[421321864,1777432248380,-484.85793732,0.00018773,2]
[421321865,1777432248392,-183.18446668,0.00018773,2]
[421321866,1777432248402,-171.817311,0.00018793,2]
[421321867,1777432248411,-668.042404,0.00018793,2]
[421321868,1777432248421,-187.480112,0.00018793,2]
[421321869,1777432248431,-171.817311,0.00018793,2]
[421321870,1777432248440,-187.480112,0.00018793,2]
[421321871,1777432248449,-321.20031782,0.00018793,2]
[421321872,1777432248462,-346.84208618,0.00018793,2]
[421321873,1777432248472,-153.83791382,0.00018793,2]
[421321874,1777432248483,-17.97939718,0.00018793,2]
[421321875,1777432248492,-282.02060282,0.00018793,2]
[421321876,1777432248504,-386.02180118,0.00018793,2]
[421321877,1777432248513,-411.92181062,0.00018793,2]
[421321878,1777432248524,-256.12059338,0.00018793,2]
[421321879,1777432248535,-600.0,0.00019178,2]
[421321880,1777432248544,-300.0,0.00019178,2]
[421321881,1777432248554,-171.817311,0.00019252,2]
[421321882,1777432248564,-668.042404,0.00019252,2]
[421321883,1777432248574,-187.480112,0.00019252,2]
[421321884,1777432248584,-171.817311,0.00019252,2]
[421321885,1777432248593,-187.480112,0.00019252,2]
[421321886,1777432248602,-668.042404,0.00019252,2]
[421321887,1777432248612,-171.817311,0.00019252,2]
[421321888,1777432248622,-668.042404,0.00019252,2]
[421321889,1777432248632,-668.042404,0.00019252,2]
[421321890,1777432248642,-187.480112,0.00019513,2]
[421321891,1777432248652,-171.817311,0.00019513,2]
[421321892,1777432248661,-668.042404,0.00019513,2]
[421321893,1777432248671,-187.480112,0.00019513,2]
[421321894,1777432248680,-171.817311,0.00019513,2]
[421321895,1777432248690,-187.480114,0.00019513,2]
[421321896,1777432248700,-668.042404,0.00019513,2]
[421321897,1777432248710,-171.817307,0.00019513,2]
[421321898,1777432248720,-668.042404,0.00019513,2]
[421321899,1777432248730,-17541.39655917,0.0002,2]
[421321900,1777432248740,-600.0,0.0002,2]
[421321901,1777432248750,-33771.66543947,0.0002,2]
[421321902,1777432248776,-668.042414,0.00019513,2]
[421321903,1777432248786,-8561.31657167,0.0002,2]
[421321904,1777432248797,-32862.56227811,0.0002,2]
[421321905,1777432248808,-13896.08965803,0.0002,2]
[421321906,1777432281855,500.0,4.01e-05,2]
[421321907,1777432281883,500.0,4.01e-05,2]
[421321908,1777432281912,1440.84,4.01e-05,2]
[421321911,1777432466738,1189.01,0.000121,90]
[421321914,1777433151563,-314.68476862,0.00013027,2]
[421321915,1777433151585,-205.65436008,0.00013344,2]
[421321916,1777433151604,-526.04679816,0.0001365,2]
[421321917,1777433151624,-463.13291411,0.00013699,2]
[421321918,1777433199269,-536.86708589,0.00013699,2]
[421321919,1777433199290,-108.04122444,0.00013853,2]
[421321920,1777433235176,1069.0,4.013e-05,2]
[421321921,1777433241091,-156.2786565,0.00013853,2]
[421321922,1777433251086,-290.50951079,0.00013853,2]
[421321949,1777433432736,-1000.0,0.00013699,2]
[421321950,1777433432746,-714.89060827,0.00013853,2]
[421321951,1777433432756,-3567.45654926,0.00013853,2]
[421321964,1777433438538,-520.85938128,0.00013853,2]
[421321979,1777433440775,-785.05340183,0.00013853,2]
[421321998,1777433440946,-17.36429517,0.00013853,2]
[421322000,1777433440958,-4369.70325648,0.00013853,2]
[421322002,1777433440971,-679.74568273,0.00013853,2]
[421322552,1777433447069,-71.65647893,0.00013903,2]
[421322557,1777433447544,-129.88479395,0.00013903,2]
[421322558,1777433447554,-37.83952171,0.00013952,2]
[421322559,1777433447567,-485.23373806,0.00013952,2]
[421322560,1777433447577,-9371.37,0.00013953,2]
[421322561,1777433447587,-300.0,0.00014128,2]
[421322562,1777433447597,-300.0,0.00014128,2]
[421322563,1777433447607,-300.0,0.00014128,2]
[421322564,1777433447617,-300.0,0.00014128,2]
[421322565,1777433447627,-300.0,0.00014128,2]
[421322566,1777433447638,-300.0,0.00014128,2]
[421322567,1777433447649,-300.0,0.00014128,2]
[421322568,1777433447659,-82.49099025,0.00014128,2]
[421322569,1777433447672,-217.50900975,0.00014128,2]
[421322570,1777433447682,-300.0,0.00014128,2]
[421322571,1777433447693,-300.0,0.00014128,2]
[421322572,1777433447702,-300.0,0.00014128,2]
[421322573,1777433447712,-300.0,0.00014128,2]
[421322574,1777433447722,-300.0,0.00014128,2]
[421322575,1777433447732,-300.0,0.00014128,2]
[421322576,1777433447742,-300.0,0.00014128,2]
[421322577,1777433447751,-500.0,0.00015396,2]
[421322578,1777433447761,-500.0,0.00015396,2]
[421322579,1777433447771,-500.0,0.00015396,2]
[421322580,1777433447781,-500.0,0.00015396,2]
[421322581,1777433447791,-210.6180014,0.00015396,2]
[421322582,1777433447803,-412.15907437,0.00015396,2]
[421322583,1777433447827,-500.0,0.00015396,2]
[421322584,1777433447842,-15.00178183,0.00015903,2]
[421322585,1777433447907,-222.81692017,0.00015903,2]
[421322586,1777433447918,-274.09613111,0.00017903,2]
[421322587,1777433447930,-160.0,0.00018099,2]
[421322588,1777433447941,-152.0,0.00018837,7]
[421322589,1777433447952,-152.0,0.00018837,7]
[421322590,1777433447964,-152.0,0.00018865,7]
[421322591,1777433447975,-152.0,0.00018865,7]
[421322592,1777433447985,-253.231,0.00018974,2]
[421322593,1777433447997,-163.30856934,0.00018986,2]
[421322594,1777433448007,-185.0,0.00019425,2]
[421322595,1777433448019,-499.42439419,0.00019569,2]
[421322596,1777433448029,-210.25507949,0.00019569,2]
[421322597,1777433448043,-289.74492051,0.00019569,2]
[421322598,1777433448056,-500.0,0.00019569,2]
[421322599,1777433448068,-243.85326136,0.00019569,2]
[421322600,1777433448078,-500.0,0.00019569,2]
[421322601,1777433448089,-500.0,0.00019569,2]
[421322602,1777433448099,-500.0,0.00019569,2]
[421322603,1777433448110,-500.0,0.00019569,2]
[421322604,1777433448121,-500.0,0.00019569,2]
[421322605,1777433448131,-323.72266507,0.00019569,2]
[421322606,1777433448141,-500.0,0.00019569,2]
[421322607,1777433448151,-453.60885527,0.00019569,2]
[421322608,1777433448161,-500.0,0.00019569,2]
[421322609,1777433448172,-500.0,0.00019569,2]
[421322610,1777433448182,-500.0,0.00019569,2]
[421322611,1777433448192,-500.0,0.00019569,2]
[421322612,1777433448203,-500.0,0.00019569,2]
[421322613,1777433448213,-500.0,0.00019569,2]
[421322614,1777433448225,-30.77696927,0.00019569,2]
[421322615,1777433448280,-469.22303073,0.00019569,2]
[421322616,1777433448290,-500.0,0.00019569,2]
[421322617,1777433448300,-500.0,0.00019569,2]
[421322618,1777433448311,-500.0,0.00019569,2]
[421322619,1777433448320,-500.0,0.00019569,2]
[421322620,1777433448330,-792.01129651,0.000196,2]
[421322621,1777433448340,-151.0,0.00019661,2]
[421322622,1777433448350,-1473.3343732,0.00019779,2]
[421322623,1777433448359,-469.22746687,0.000198,2]
[421322624,1777433448369,-5000.0,0.00019836,2]
[421322625,1777433448379,-250.0,0.00019868,2]
[421322626,1777433448388,-3558.9576931,0.0001989,2]
[421322627,1777433448398,-310.37356023,0.00019903,2]
[421322628,1777433448407,-200.0,0.00019999,2]
[421322629,1777433448417,-500.0,0.00019999,2]
[421322630,1777433448427,-275.97123272,0.00019999,2]
[421322631,1777433448436,-500.0,0.00019999,2]
[421322632,1777433448446,-500.0,0.00019999,2]
[421322633,1777433448455,-500.0,0.00019999,2]
[421322634,1777433448464,-396.43946096,0.00019999,2]
[421322635,1777433448474,-500.0,0.00019999,2]
[421322636,1777433448484,-500.0,0.00019999,2]
[421322637,1777433448494,-232.14244615,0.00019999,2]
[421322638,1777433448504,-58370.1858897,0.0002,2]
[421322639,1777433499748,-298.58352676,0.0001,2]
[421322646,1777434450122,-500.0,0.000121,30]
[421322647,1777434450146,-236.3359,0.000121,30]
[421322648,1777434561175,-245.16972554,0.000121,30]
[421322649,1777434561198,-5000.0,0.00012156,2]
[421322650,1777434561220,-592.0,0.00012156,2]
[421322651,1777434561243,-121.68521082,0.00012279,2]
[421322660,1777434633311,-374.51044687,0.00012156,2]
[421322666,1777434633365,-487.18693307,0.00012156,2]
[421322672,1777434633420,-141.20966745,0.00012156,2]
[421322675,1777434633430,-449.0,0.00012156,2]
[421322677,1777434633440,-78.93946873,0.00012279,2]
[421322678,1777434633450,-300.0,0.00012834,2]